bitfinex/quotes_SOLUSD_20251223
["timestamp","ask_amount","ask_price","bid_price","bid_amount"]
[1766503003476,0.67,123.27,123.23,7.8096707]
[1766503004262,0.67,123.26,123.23,7.8096707]
[1766503004770,0.67,123.26,123.2,8.11638798]
[1766503004973,0.67,123.25,123.21,7.8096707]
[1766503006186,0.67,123.25,123.22,7.8096707]
[1766503006382,0.67,123.25,123.19,8.117542]
[1766503006383,0.67,123.27,123.24,7.8096707]
[1766503006961,11.10767296,123.29,123.25,7.8096707]
[1766503007155,0.67,123.29,123.25,7.8096707]
[1766503007783,0.67,123.29,123.23,10.43767296]
[1766503007955,0.67,123.29,123.26,7.8096707]
[1766503008358,0.67,123.29,123.27,7.8096707]
[1766503008570,0.67,123.29,123.25,8.11320851]
[1766503008877,0.67,123.29,123.21,31.53913829]
[1766503009079,0.67,123.29,123.25,7.8096707]
[1766503009285,0.67,123.29,123.26,7.8096707]
[1766503009482,0.67,123.29,123.27,7.8096707]
[1766503012679,0.67,123.29,123.22,8.11556565]
[1766503012885,0.67,123.29,123.25,7.8096707]
[1766503013785,0.67,123.27,123.21,19.36526305]
[1766503014084,0.1,123.31,123.26,7.8096707]
[1766503014254,0.77,123.31,123.29,7.8096707]
[1766503015180,0.1,123.31,123.3,7.8096707]
[1766503015581,0.1,123.31,123.29,7.8096707]
[1766503015778,0.1,123.31,123.24,30.72235641]
[1766503015991,0.1,123.31,123.29,7.8096707]
[1766503016285,0.1,123.31,123.3,7.8096707]
[1766503016985,0.1,123.31,123.28,8.11161112]
[1766503017183,0.1,123.31,123.3,7.8096707]
[1766503018079,0.1,123.33,123.3,15.91997078]
[1766503018260,0.77,123.36,123.32,7.8096707]
[1766503018461,0.67,123.35,123.29,8.11076055]
[1766503018765,0.67,123.34,123.31,7.8096707]
[1766503019085,0.67,123.34,123.28,18.54919042]
[1766503019470,0.67,123.34,123.29,8.11075729]
[1766503019793,0.67,123.34,123.31,7.8096707]
[1766503019973,0.67,123.34,123.29,8.11075729]
[1766503020172,10.53767296,123.36,123.28,11.24883454]
[1766503020368,10.53767296,123.36,123.34,7.8096707]
[1766503020369,0.1,123.36,123.34,7.8096707]
[1766503020568,0.77,123.36,123.33,7.8096707]
[1766503020798,0.77,123.36,123.3,18.54787466]
[1766503020969,0.77,123.36,123.33,7.8096707]
[1766503021183,0.77,123.36,123.3,18.54787466]
[1766503021358,0.77,123.36,123.34,7.8096707]
[1766503021764,0.67,123.35,123.28,8.92225226]
[1766503021965,0.67,123.35,123.28,11.24883454]
[1766503022167,0.67,123.34,123.31,4.79193057]
[1766503022391,0.67,123.33,123.3,4.79193057]
[1766503022565,0.67,123.33,123.31,4.79193057]
[1766503022969,0.67,123.33,123.26,14.8]
[1766503023176,0.67,123.31,123.26,14.8]
[1766503023390,0.67,123.31,123.27,4.79193057]
[1766503023605,0.67,123.31,123.28,4.79193057]
[1766503023976,0.67,123.31,123.27,4.79193057]
[1766503024285,0.67,123.3,123.27,4.79193057]
[1766503024487,0.67,123.32,123.29,4.79193057]
[1766503024797,10.43767296,123.34,123.31,4.79193057]
[1766503024798,0.67,123.34,123.31,4.79193057]
[1766503025098,0.67,123.34,123.27,28.39284949]
[1766503025300,0.67,123.34,123.3,4.79193057]
[1766503025985,0.77,123.36,123.28,0.81116158]
[1766503026187,0.77,123.36,123.3,10.43767296]
[1766503026494,0.77,123.36,123.31,4.79193057]
[1766503026795,0.77,123.36,123.32,4.79193057]
[1766503027176,8.20639513,123.36,123.3,18.54784056]
[1766503027377,0.1,123.36,123.32,4.79193057]
[1766503027685,0.81,123.36,123.33,4.79193057]
[1766503028098,0.81,123.36,123.32,4.79193057]
[1766503028301,0.81,123.36,123.33,4.79193057]
[1766503029001,0.81,123.36,123.3,8.11002729]
[1766503029213,8.20664967,123.36,123.28,11.24883454]
[1766503029489,0.71,123.35,123.31,4.79193057]
[1766503029693,0.71,123.35,123.32,4.79193057]
[1766503029899,4.79193057,123.34,123.27,0.81122738]
[1766503030073,4.79193057,123.34,123.26,22.91271825]
[1766503030074,0.71,123.33,123.29,4.79193057]
[1766503030275,0.71,123.33,123.26,22.91271825]
[1766503030276,0.71,123.33,123.27,12.90412648]
[1766503030506,0.71,123.35,123.32,4.79193057]
[1766503030880,0.71,123.35,123.29,8.11057696]
[1766503031203,0.71,123.34,123.31,4.79193057]
[1766503031392,5.50193057,123.34,123.28,10.43767296]
[1766503031702,0.71,123.32,123.29,4.79193057]
[1766503032203,0.71,123.32,123.26,22.91287884]
[1766503032580,0.71,123.32,123.29,4.79193057]
[1766503033082,8.81908692,123.32,123.26,22.91287884]
[1766503033281,8.81908692,123.32,123.29,4.79193057]
[1766503033580,8.81908692,123.32,123.26,22.91287884]
[1766503033778,0.71,123.3,123.25,10.43767296]
[1766503034078,0.71,123.29,123.26,4.79193057]
[1766503034397,0.71,123.29,123.27,4.79193057]
[1766503034574,0.71,123.29,123.26,4.79193057]
[1766503034989,0.71,123.32,123.25,11.24903198]
[1766503035184,0.71,123.32,123.26,8.11288071]
[1766503035396,0.71,123.32,123.29,4.79193057]
[1766503035594,0.71,123.32,123.26,8.11288071]
[1766503035810,0.71,123.32,123.25,19.36235079]
[1766503035999,8.81906793,123.32,123.28,4.79193057]
[1766503036181,0.71,123.31,123.28,4.79193057]
[1766503036905,4.79193057,123.33,123.3,4.79193057]
[1766503036906,8.81853621,123.33,123.3,4.79193057]
[1766503037204,0.71,123.32,123.29,4.79193057]
[1766503038312,0.71,123.32,123.27,8.11206223]
[1766503038495,0.71,123.33,123.3,4.79193057]
[1766503038898,0.71,123.32,123.29,4.79193057]
[1766503039111,0.71,123.35,123.31,4.79193057]
[1766503039281,0.71,123.35,123.33,4.79193057]
[1766503039490,0.71,123.35,123.32,4.79193057]
[1766503039692,0.71,123.34,123.31,4.79193057]
[1766503040186,0.1,123.36,123.33,4.79193057]
[1766503040397,0.1,123.36,123.35,4.79193057]
[1766503040998,0.1,123.36,123.34,4.79193057]
[1766503041194,0.1,123.36,123.35,4.79193057]
[1766503041401,0.1,123.37,123.35,4.79193057]
[1766503041705,0.1,123.37,123.36,4.79193057]
[1766503041910,0.1,123.37,123.31,11.24863719]
[1766503041911,0.81,123.37,123.35,4.79193057]
[1766503042209,0.71,123.36,123.32,4.79193057]
[1766503042506,0.71,123.36,123.33,4.79193057]
[1766503043017,0.71,123.34,123.3,4.79193057]
[1766503043190,0.71,123.34,123.31,4.79193057]
[1766503043593,0.71,123.36,123.33,4.79193057]
[1766503044303,0.71,123.36,123.3,10.43767296]
[1766503044506,0.71,123.36,123.33,4.79193057]
[1766503045426,0.1,123.37,123.35,4.79193057]
[1766503045722,0.1,123.37,123.36,4.79193057]
[1766503046016,0.1,123.37,123.33,8.91880408]
[1766503046219,0.1,123.37,123.36,4.79193057]
[1766503046387,0.1,123.37,123.34,4.79193057]
[1766503046809,0.81,123.37,123.34,4.79193057]
[1766503047012,0.71,123.36,123.3,0.81103]
[1766503047195,0.1,123.37,123.31,8.1096003]
[1766503047513,0.81,123.37,123.31,8.1096003]
[1766503047817,0.81,123.37,123.34,4.79193057]
[1766503048114,0.81,123.37,123.34,1.91574905]
[1766503048627,0.81,123.37,123.28,24.74127984]
[1766503048628,0.71,123.35,123.28,18.54922463]
[1766503048795,0.71,123.35,123.3,1.91574905]
[1766503048796,0.71,123.33,123.3,1.91574905]
[1766503049411,0.71,123.33,123.31,1.91574905]
[1766503049698,1.91574905,123.36,123.31,1.91574905]
[1766503049897,0.71,123.35,123.31,1.91574905]
[1766503050196,0.71,123.35,123.31,4.79187788]
[1766503050401,0.71,123.35,123.3,4.79187788]
[1766503050602,0.71,123.34,123.3,4.79187788]
[1766503051007,8.81774993,123.34,123.3,4.79187788]
[1766503051518,0.71,123.33,123.29,4.79187788]
[1766503051714,5.50187788,123.33,123.28,4.79187788]
[1766503052011,0.71,123.32,123.29,4.79187788]
[1766503052390,0.71,123.32,123.27,14.8]
[1766503052597,0.71,123.32,123.27,4.79187788]
[1766503052791,8.10982932,123.31,123.27,4.79187788]
[1766503053031,0.71,123.3,123.27,4.79187788]
[1766503053332,0.62102087,123.36,123.28,10.43767296]
[1766503053505,33.16436604,123.36,123.31,4.79187788]
[1766503053706,33.16436604,123.36,123.3,4.79187788]
[1766503053707,4.79187788,123.35,123.3,4.79187788]
[1766503053895,4.79187788,123.34,123.29,4.79187788]
[1766503054097,28.37248816,123.36,123.3,4.79187788]
[1766503054302,4.79187788,123.35,123.3,4.79187788]
[1766503054507,28.37248816,123.36,123.3,4.79187788]
[1766503054714,4.79187788,123.35,123.3,4.79187788]
[1766503055300,0.71,123.34,123.3,4.79187788]
[1766503055501,0.71,123.33,123.27,10.43767296]
[1766503055715,0.71,123.33,123.29,4.79187788]
[1766503056123,0.71,123.33,123.3,4.79187788]
[1766503056304,0.71,123.33,123.27,18.54984156]
[1766503056504,0.71,123.33,123.29,4.79187788]
[1766503057219,0.71,123.33,123.3,4.79187788]
[1766503057730,0.71,123.33,123.29,4.79187788]
[1766503058222,0.71,123.33,123.3,4.79187788]
[1766503059631,0.68,123.3,123.22,14.8]
[1766503059834,0.68,123.29,123.22,22.91493417]
[1766503060136,0.68,123.29,123.25,4.79187788]
[1766503060349,0.68,123.29,123.26,4.79187788]
[1766503060549,0.68,123.31,123.27,4.79187788]
[1766503061534,0.68,123.3,123.27,4.79187788]
[1766503062315,0.68,123.3,123.24,8.11398738]
[1766503062316,0.68,123.3,123.26,4.79187788]
[1766503063738,0.68,123.3,123.24,8.11398738]
[1766503063932,0.68,123.3,123.26,4.79187788]
[1766503064118,0.68,123.3,123.27,4.79187788]
[1766503064527,0.68,123.32,123.29,4.79187788]
[1766503064720,0.68,123.33,123.3,4.79187788]
[1766503066912,0.68,123.33,123.29,4.79187788]
[1766503067349,0.68,123.33,123.27,8.11191589]
[1766503067850,0.68,123.32,123.29,4.79187788]
[1766503070226,8.7885619,123.33,123.3,4.79187788]
[1766503070428,0.68,123.33,123.3,4.79187788]
[1766503070822,8.78839427,123.33,123.3,4.79187788]
[1766503071742,0.68,123.34,123.32,4.79187788]
[1766503071938,0.68,123.34,123.32,1.91642616]
[1766503072860,0.68,123.34,123.28,18.54902745]
[1766503073031,0.68,123.34,123.27,8.11196992]
[1766503073221,0.68,123.34,123.29,1.91642616]
[1766503073544,0.68,123.33,123.28,1.91642616]
[1766503074122,8.10838529,123.33,123.28,1.91642616]
[1766503074442,0.68,123.32,123.3,1.91642616]
[1766503074638,8.78768469,123.34,123.31,1.91642616]
[1766503075042,0.68,123.34,123.31,1.91642616]
[1766503075232,0.68,123.34,123.32,1.91642616]
[1766503075731,0.68,123.36,123.33,1.91642616]
[1766503076041,0.68,123.36,123.34,4.78991422]
[1766503076224,0.68,123.36,123.3,8.92071117]
[1766503076424,0.68,123.36,123.33,4.78991422]
[1766503077226,0.68,123.36,123.3,8.92071117]
[1766503077426,0.68,123.36,123.33,4.78991422]
[1766503078048,0.68,123.36,123.3,8.92071117]
[1766503078263,0.68,123.36,123.33,4.78991422]
[1766503078553,0.68,123.36,123.34,4.78991422]
[1766503079525,0.68,123.36,123.33,4.78991422]
[1766503080545,0.1,123.37,123.35,4.78991422]
[1766503080745,0.1,123.37,123.36,4.78991422]
[1766503080939,0.78,123.37,123.32,8.91965195]
[1766503081140,0.68,123.36,123.29,30.71423964]
[1766503081357,0.68,123.36,123.34,4.78991422]
[1766503081534,0.68,123.36,123.31,8.10909704]
[1766503081849,0.68,123.36,123.33,4.78991422]
[1766503082049,0.68,123.36,123.3,8.92108057]
[1766503082249,0.68,123.36,123.29,18.54848243]
[1766503082554,15.98965919,123.37,123.34,7.78392671]
[1766503082555,0.78,123.37,123.34,7.78392671]
[1766503083052,0.78,123.37,123.33,7.78392671]
[1766503083630,0.68,123.36,123.33,7.78392671]
[1766503084639,0.68,123.36,123.3,8.11000982]
[1766503084839,0.68,123.36,123.33,7.78392671]
[1766503085043,8.20609393,123.37,123.34,7.78392671]
[1766503085240,8.88609393,123.37,123.34,7.78392671]
[1766503085441,0.68,123.36,123.33,7.78392671]
[1766503085863,0.68,123.36,123.34,7.78392671]
[1766503086157,0.68,123.36,123.33,7.78392671]
[1766503086830,0.68,123.36,123.3,8.11000982]
[1766503087158,8.20600187,123.37,123.34,7.78392671]
[1766503087159,0.1,123.37,123.34,7.78392671]
[1766503087342,0.1,123.37,123.35,7.78392671]
[1766503088444,0.1,123.37,123.31,0.81096423]
[1766503088746,0.1,123.37,123.35,7.78392671]
[1766503089131,0.1,123.37,123.32,8.10894274]
[1766503089430,0.1,123.37,123.35,7.78392671]
[1766503090540,0.1,123.37,123.32,8.10894274]
[1766503090749,0.76,123.37,123.33,7.78392671]
[1766503090956,0.76,123.37,123.34,7.78392671]
[1766503091835,0.66,123.36,123.3,8.10999056]
[1766503092154,0.66,123.36,123.33,7.78392671]
[1766503093458,0.66,123.36,123.3,8.10999056]
[1766503093642,0.66,123.36,123.33,7.78392671]
[1766503093837,0.66,123.34,123.28,8.11106457]
[1766503094142,8.76645074,123.36,123.33,7.78392671]
[1766503094447,0.66,123.35,123.33,7.78392671]
[1766503095161,0.66,123.35,123.34,7.78392671]
[1766503095365,0.1,123.37,123.29,29.19936912]
[1766503095366,0.76,123.37,123.29,29.19936912]
[1766503095661,0.76,123.37,123.34,7.78392671]
[1766503095861,0.66,123.36,123.29,29.19936912]
[1766503096039,0.66,123.36,123.33,2.99390491]
[1766503096240,0.66,123.36,123.3,2.99390491]
[1766503096463,0.66,123.36,123.33,2.99390491]
[1766503096661,0.1,123.37,123.34,2.99390491]
[1766503096833,0.1,123.37,123.36,2.99390491]
[1766503097744,0.1,123.37,123.35,2.99390491]
[1766503097941,0.3,123.37,123.35,2.99390491]
[1766503098461,0.66,123.36,123.29,8.11066984]
[1766503098767,0.86,123.35,123.31,2.99390491]
[1766503098960,0.66,123.34,123.31,2.99390491]
[1766503099259,2.99390491,123.36,123.31,2.99390491]
[1766503099260,0.2,123.33,123.31,2.99390491]
[1766503099473,0.86,123.33,123.29,2.99390491]
[1766503099640,8.76837544,123.33,123.29,2.99390491]
[1766503099838,0.2,123.32,123.29,2.99390491]
[1766503100142,0.2,123.32,123.3,2.99390491]
[1766503101439,0.62102087,123.35,123.31,2.99390491]
[1766503101440,8.10743056,123.35,123.31,2.99390491]
[1766503101641,0.66,123.34,123.32,3.19390491]
[1766503101862,0.66,123.34,123.31,2.99390491]
[1766503102064,0.76,123.37,123.35,0.19984118]
[1766503102362,0.66,123.36,123.33,2.99390491]
[1766503102661,0.66,123.36,123.32,2.99390491]
[1766503102867,0.66,123.33,123.29,2.99390491]
[1766503103366,0.62102087,123.35,123.31,2.99390491]
[1766503103574,0.66,123.35,123.32,2.99390491]
[1766503103943,0.66,123.35,123.31,2.99390491]
[1766503104139,8.10703973,123.35,123.31,2.99390491]
[1766503104337,0.66,123.34,123.31,2.99390491]
[1766503104547,0.66,123.34,123.3,2.99390491]
[1766503104974,0.66,123.34,123.29,2.99390491]
[1766503105135,0.66,123.34,123.3,2.99390491]
[1766503105663,0.66,123.34,123.28,8.11157334]
[1766503105664,0.66,123.34,123.31,2.99390491]
[1766503107667,0.66,123.33,123.29,2.99390491]
[1766503107896,0.66,123.33,123.3,2.99390491]
[1766503108171,0.05,123.32,123.28,11.10548582]
[1766503108541,0.05,123.32,123.28,2.99390491]
[1766503109255,0.66,123.31,123.26,3.80519811]
[1766503109440,0.66,123.3,123.25,11.1072978]
[1766503109649,0.66,123.3,123.25,18.55106585]
[1766503109853,0.05,123.29,123.25,10.43767296]
[1766503110059,0.05,123.29,123.25,13.43157787]
[1766503111369,0.71,123.29,123.24,17.79390491]
[1766503112659,0.71,123.29,123.24,14.8]
[1766503112861,0.71,123.29,123.24,17.79390491]
[1766503113248,0.66,123.28,123.24,17.79390491]
[1766503113454,0.05,123.27,123.24,17.79390491]
[1766503113656,0.66,123.26,123.19,20.29278456]
[1766503113950,0.66,123.25,123.21,2.99390491]
[1766503114471,0.66,123.25,123.22,2.99390491]
[1766503114845,0.66,123.25,123.2,8.11651447]
[1766503115051,0.66,123.25,123.22,2.99390491]
[1766503115574,0.66,123.25,123.2,2.99390491]
[1766503115761,0.66,123.25,123.19,10.43767296]
[1766503115762,0.66,123.24,123.19,13.43157787]
[1766503116070,0.66,123.23,123.19,10.43767296]
[1766503116259,0.66,123.23,123.2,2.99390491]
[1766503116656,0.66,123.24,123.2,2.99390491]
[1766503116862,0.66,123.25,123.21,2.99390491]
[1766503117057,0.66,123.25,123.2,11.11070449]
[1766503117454,0.66,123.25,123.22,2.99390491]
[1766503117772,0.66,123.24,123.21,2.99390491]
[1766503118156,0.66,123.24,123.2,2.99390491]
[1766503118668,0.67,123.23,123.19,2.99390491]
[1766503119175,0.67,123.25,123.2,2.99390491]
[1766503119376,0.67,123.25,123.22,2.99390491]
[1766503119875,0.67,123.24,123.21,2.99390491]
[1766503121875,0.67,123.24,123.22,2.99390491]
[1766503122659,0.67,123.24,123.21,2.99390491]
[1766503122963,0.67,123.24,123.2,2.99390491]
[1766503123358,8.78438116,123.24,123.2,2.99390491]
[1766503123559,0.67,123.23,123.2,2.99390491]
[1766503125455,0.67,123.23,123.18,10.43767296]
[1766503126290,0.67,123.23,123.2,2.99390491]
[1766503126783,0.67,123.25,123.21,2.99390491]
[1766503126960,0.67,123.25,123.22,2.99390491]
[1766503128773,0.67,123.25,123.21,2.99390491]
[1766503130284,0.67,123.25,123.22,2.99390491]
[1766503130482,8.11380041,123.25,123.21,2.99390491]
[1766503130781,0.67,123.24,123.21,2.99390491]
[1766503130983,0.67,123.24,123.17,15.0]
[1766503131183,0.67,123.23,123.19,2.99390491]
[1766503131362,0.67,123.23,123.2,2.99390491]
[1766503131684,0.67,123.23,123.17,15.0]
[1766503131883,8.11538249,123.23,123.18,2.99390491]
[1766503132089,0.67,123.22,123.19,2.99390491]
[1766503132565,0.67,123.22,123.2,2.99390491]
[1766503132961,0.67,123.22,123.19,2.99390491]
[1766503133788,0.67,123.22,123.2,2.99390491]
[1766503134191,0.67,123.22,123.17,15.0]
[1766503134385,0.67,123.22,123.19,2.99390491]
[1766503134681,0.67,123.21,123.17,0.2]
[1766503134900,0.67,123.21,123.17,3.19390491]
[1766503135681,0.67,123.21,123.17,0.2]
[1766503135892,0.67,123.21,123.18,2.99390491]
[1766503137674,0.67,123.2,123.17,0.2]
[1766503137891,0.67,123.2,123.18,2.99390491]
[1766503138188,0.67,123.2,123.19,2.99390491]
[1766503138573,0.67,123.2,123.18,2.99390491]
[1766503138894,0.67,123.21,123.19,2.99390491]
[1766503139696,0.67,123.21,123.18,2.99390491]
[1766503141692,0.67,123.2,123.17,3.19390491]
[1766503142080,0.67,123.22,123.17,0.2]
[1766503142284,0.67,123.22,123.2,2.99390491]
[1766503143789,1.29102087,123.25,123.21,2.99390491]
[1766503143987,0.67,123.26,123.24,1.91920851]
[1766503144299,10.43767296,123.26,123.2,10.03597464]
[1766503144503,0.67,123.25,123.2,10.03597464]
[1766503144704,0.67,123.25,123.2,2.58920851]
[1766503144897,0.67,123.25,123.22,1.91920851]
[1766503145104,0.67,123.25,123.18,23.75001197]
[1766503145397,0.57,123.24,123.21,1.91920851]
[1766503145603,0.57,123.25,123.22,1.91920851]
[1766503145787,0.57,123.25,123.23,1.91920851]
[1766503146194,0.57,123.27,123.22,0.67]
[1766503146505,0.57,123.26,123.24,1.91920851]
[1766503147822,0.57,123.26,123.23,1.91920851]
[1766503150796,0.57,123.26,123.22,0.67]
[1766503151110,0.57,123.26,123.23,1.91920851]
[1766503151897,11.00767296,123.26,123.22,2.58920851]
[1766503152395,11.00767296,123.26,123.23,1.91920851]
[1766503153017,11.00767296,123.26,123.22,2.58920851]
[1766503153609,0.57,123.25,123.2,8.80679418]
[1766503153790,0.57,123.25,123.21,0.69]
[1766503155589,0.57,123.24,123.19,8.11725029]
[1766503155813,0.57,123.21,123.17,0.2]
[1766503156014,0.57,123.21,123.17,2.80920851]
[1766503156516,0.57,123.21,123.17,2.11920851]
[1766503156715,11.00767296,123.22,123.18,0.69]
[1766503157723,11.00767296,123.22,123.18,2.60920851]
[1766503159014,0.62102087,123.28,123.21,1.91920851]
[1766503159216,8.11141744,123.29,123.23,1.91920851]
[1766503159432,14.82,123.33,123.25,2.60920851]
[1766503159433,0.57,123.3,123.25,2.60920851]
[1766503159795,1.91920851,123.3,123.25,2.60920851]
[1766503160099,0.57,123.29,123.25,2.60920851]
[1766503160297,14.82,123.33,123.27,2.60920851]
[1766503160298,10.59819326,123.32,123.27,2.60920851]
[1766503160498,0.57,123.31,123.22,11.24922952]
[1766503160720,0.57,123.3,123.25,1.91920851]
[1766503160956,0.57,123.3,123.25,2.60920851]
[1766503161234,0.57,123.3,123.25,10.72275225]
[1766503161516,22.92860905,123.33,123.27,2.60920851]
[1766503161693,22.92860905,123.33,123.25,10.03275225]
[1766503161694,0.57,123.32,123.28,2.60920851]
[1766503161897,10.43767296,123.3,123.28,2.60920851]
[1766503162612,0.57,123.32,123.28,2.60920851]
[1766503162819,2.48920851,123.34,123.29,2.60920851]
[1766503163008,10.43767296,123.32,123.29,0.69]
[1766503163221,2.48920851,123.35,123.3,2.60920851]
[1766503163449,2.48920851,123.35,123.3,0.69]
[1766503163610,10.43767296,123.33,123.3,0.69]
[1766503164447,10.43767296,123.33,123.3,2.60920851]
[1766503164592,10.43767296,123.33,123.3,0.69]
[1766503164996,10.43767296,123.33,123.3,2.60920851]
[1766503165197,10.43767296,123.33,123.31,1.91920851]
[1766503165700,10.43767296,123.33,123.31,0.69]
[1766503166822,8.10786156,123.34,123.28,0.69]
[1766503167009,0.57,123.33,123.28,10.03066193]
[1766503167192,0.57,123.33,123.29,0.69]
[1766503167397,2.48920851,123.33,123.29,0.69]
[1766503168917,2.48920851,123.31,123.27,0.69]
[1766503169608,0.57,123.31,123.27,0.69]
[1766503170009,2.48920851,123.32,123.27,0.69]
[1766503170197,2.48920851,123.31,123.27,0.69]
[1766503170399,0.57,123.31,123.27,0.69]
[1766503170618,2.48920851,123.31,123.27,0.69]
[1766503171218,11.00767296,123.3,123.26,15.51]
[1766503171421,10.43767296,123.3,123.27,0.69]
[1766503171800,10.43767296,123.31,123.27,0.69]
[1766503172206,2.48920851,123.34,123.29,0.69]
[1766503172409,10.43767296,123.32,123.29,0.69]
[1766503172910,11.00767296,123.32,123.28,1.91920851]
[1766503173226,11.00767296,123.32,123.28,2.60920851]
[1766503173530,0.57,123.32,123.28,2.60920851]
[1766503174227,10.43767296,123.33,123.28,10.03072815]
[1766503174431,10.43767296,123.33,123.29,2.59920851]
[1766503174725,0.57,123.33,123.29,2.59920851]
[1766503175109,1.91920851,123.32,123.27,9.60305174]
[1766503175426,0.57,123.32,123.28,0.68]
[1766503175601,0.57,123.32,123.27,10.0309929]
[1766503175802,2.48920851,123.32,123.27,10.7109929]
[1766503176003,0.57,123.32,123.27,10.7109929]
[1766503176205,0.57,123.34,123.29,0.68]
[1766503176434,10.43767296,123.33,123.3,0.68]
[1766503176811,1.91920851,123.35,123.3,0.68]
[1766503177013,1.91920851,123.35,123.28,28.98607665]
[1766503177014,2.48920851,123.32,123.28,0.59547937]
[1766503177330,2.48920851,123.3,123.26,14.82]
[1766503177625,0.57,123.3,123.26,23.64280133]
[1766503177824,0.57,123.3,123.26,25.56200984]
[1766503178131,0.57,123.3,123.26,23.64280133]
[1766503178711,2.48920851,123.3,123.26,15.53]
[1766503178911,2.48920851,123.29,123.26,14.82]
[1766503179415,0.57,123.29,123.26,14.82]
[1766503180019,0.57,123.29,123.25,8.82348545]
[1766503180227,0.57,123.26,123.22,0.71]
[1766503180432,1.91920851,123.27,123.22,0.71]
[1766503180620,2.48920851,123.27,123.22,0.71]
[1766503180834,0.57,123.27,123.23,8.82488682]
[1766503181434,1.91920851,123.28,123.23,8.11488682]
[1766503181617,10.43767296,123.3,123.25,0.71]
[1766503181819,12.35688147,123.3,123.25,0.71]
[1766503182019,15.23316602,123.3,123.25,0.71]
[1766503182239,10.43767296,123.3,123.25,0.71]
[1766503182541,0.57,123.29,123.25,0.71]
[1766503183135,10.43767296,123.29,123.25,8.82343243]
[1766503183325,0.57,123.3,123.26,0.71]
[1766503183527,0.57,123.31,123.27,0.71]
[1766503183711,10.43767296,123.31,123.28,0.71]
[1766503184135,0.57,123.32,123.28,5.50549306]
[1766503184332,4.79549306,123.34,123.29,0.71]
[1766503184511,0.57,123.34,123.29,0.71]
[1766503184712,15.80316602,123.35,123.3,0.71]
[1766503184912,23.91026474,123.35,123.3,0.71]
[1766503185124,13.47259178,123.35,123.3,0.71]
[1766503185316,5.36549306,123.33,123.28,0.71]
[1766503185517,0.57,123.33,123.28,5.50549306]
[1766503185744,0.57,123.33,123.28,13.61674642]
[1766503185914,0.57,123.33,123.29,0.71]
[1766503186115,0.57,123.33,123.29,13.6163801]
[1766503186314,15.80316602,123.35,123.3,0.71]
[1766503186531,0.57,123.34,123.3,0.71]
[1766503186718,0.57,123.34,123.3,5.50549306]
[1766503187437,5.36549306,123.34,123.3,0.71]
[1766503188238,0.57,123.34,123.3,0.71]
[1766503190043,0.1,123.37,123.3,0.71]
[1766503190044,5.36549306,123.36,123.31,0.71]
[1766503190229,0.57,123.36,123.31,5.50549306]
[1766503190539,5.36549306,123.36,123.32,0.71]
[1766503190736,13.4721417,123.36,123.32,0.71]
[1766503190958,0.57,123.35,123.3,5.50549306]
[1766503191320,0.57,123.35,123.3,0.71]
[1766503191638,11.00767296,123.34,123.3,0.71]
[1766503191835,15.80316602,123.34,123.3,0.71]
[1766503192038,0.57,123.33,123.29,0.71]
[1766503193945,0.57,123.34,123.3,0.71]
[1766503194337,5.36549306,123.34,123.3,0.71]
[1766503195048,15.23316602,123.35,123.3,0.71]
[1766503195240,11.00767296,123.35,123.31,0.71]
[1766503195644,11.00767296,123.35,123.3,5.50549306]
[1766503196343,11.00767296,123.35,123.31,0.71]
[1766503196550,15.80316602,123.35,123.31,0.71]
[1766503197449,23.91021092,123.35,123.31,0.71]